bitfinex-derivatives/quotes_ETHF0:USTF0_20260213
["timestamp","ask_amount","ask_price","bid_price","bid_amount"]
[1770974269188,4.46984908,1957.5,1956.2,3.20723014]
[1770974269390,5.29251152,1957.6,1956.2,3.20723014]
[1770974269391,4.46984908,1957.4,1956.2,3.20723014]
[1770974269598,4.46984908,1957.3,1956.2,3.20723014]
[1770974269798,5.29251152,1957.6,1956.2,3.20723014]
[1770974269993,4.4704804,1957.5,1956.2,3.20723014]
[1770974270194,4.4704804,1957.4,1956.2,3.20723014]
[1770974270398,4.4704804,1957.3,1956.2,3.20723014]
[1770974270598,3.03388102,1957.5,1956.2,3.20723014]
[1770974270799,4.47141421,1957.4,1956.3,3.15135231]
[1770974270999,5.29251152,1957.6,1956.3,3.15135231]
[1770974271200,4.47122503,1957.5,1956.3,3.15135231]
[1770974271396,3.03388102,1957.5,1956.3,3.15135231]
[1770974271600,3.03388102,1957.4,1956.3,3.15135231]
[1770974272302,7.50510605,1957.4,1956.3,3.15135231]
[1770974272499,4.47122503,1957.3,1956.3,3.15135231]
[1770974272699,3.03388102,1957.4,1956.3,3.15135231]
[1770974273301,2.2586305,1957.3,1956.3,3.15135231]
[1770974273502,5.29251152,1957.3,1956.3,3.15135231]
[1770974273703,4.57832945,1957.2,1956.3,3.15135231]
[1770974273903,2.2586305,1957.0,1956.3,3.15135231]
[1770974274604,4.57886858,1956.9,1956.3,3.15135231]
[1770974274805,3.03388102,1957.1,1956.3,3.15135231]
[1770974275106,4.57886887,1957.1,1956.3,3.15135231]
[1770974275306,4.57886887,1957.0,1956.3,3.15135231]
[1770974275599,15.55788102,1957.2,1956.3,3.15135231]
[1770974275803,4.57813074,1957.1,1956.3,3.15135231]
[1770974276005,4.57813074,1957.0,1956.3,3.15135231]
[1770974276204,15.55788102,1957.2,1956.3,3.15135231]
[1770974276405,4.57747583,1957.1,1956.3,3.15135231]
[1770974276706,4.57747583,1957.0,1956.3,3.15135231]
[1770974277005,15.55788102,1957.2,1956.3,3.15135231]
[1770974277308,4.5773548,1957.1,1956.3,3.15135231]
[1770974277602,4.5773548,1957.0,1956.3,3.15135231]
[1770974277798,6.83563847,1956.9,1956.3,3.15135231]
[1770974278003,4.57700797,1956.8,1956.3,3.15135231]
[1770974278907,3.03388102,1957.1,1956.3,3.15135231]
[1770974279101,7.60960894,1957.1,1956.3,3.15135231]
[1770974280108,12.524,1957.2,1956.3,3.15135231]
[1770974283106,12.569,1957.6,1956.4,3.13821597]
[1770974283410,4.57341249,1957.5,1956.4,3.13821597]
[1770974283708,12.569,1957.6,1956.4,3.13821597]
[1770974284005,4.57336653,1957.5,1956.4,3.13821597]
[1770974284207,12.569,1957.6,1956.4,3.13821597]
[1770974284402,4.57344436,1957.5,1956.4,3.13821597]
[1770974284603,12.569,1957.6,1956.4,3.13821597]
[1770974284804,4.57344245,1957.5,1956.4,3.13821597]
[1770974285005,12.569,1957.6,1956.4,3.13821597]
[1770974285204,4.57356013,1957.5,1956.4,3.13821597]
[1770974285404,12.569,1957.6,1956.4,3.13821597]
[1770974285606,4.5736741,1957.5,1956.4,3.13821597]
[1770974285807,2.2586305,1957.0,1956.4,2.95108426]
[1770974286012,14.8256305,1957.0,1956.4,2.95108426]
[1770974287214,12.567,1957.0,1956.4,2.95108426]
[1770974288512,12.567,1957.0,1955.8,3.07418948]
[1770974288708,2.2586305,1956.5,1955.6,3.07418948]
[1770974288907,2.26493536,1956.5,1955.6,3.07418948]
[1770974289411,17.17776971,1956.4,1955.6,3.07418948]
[1770974289708,4.59376971,1956.3,1955.6,3.07418948]
[1770974290106,12.584,1956.4,1955.6,3.07418948]
[1770974290307,0.00630486,1956.5,1955.6,3.07418948]
[1770974291806,2.26493536,1956.5,1955.6,3.07418948]
[1770974292108,4.57425248,1956.4,1955.6,3.07418948]
[1770974292309,4.57425248,1956.3,1955.6,3.07418948]
[1770974292508,0.25576,1956.4,1955.6,3.07418948]
[1770974292711,2.2586305,1956.2,1955.6,3.07418948]
[1770974294016,2.2586305,1955.9,1955.4,3.15948408]
[1770974294211,12.352,1956.0,1955.4,3.15948408]
[1770974296116,2.2586305,1956.4,1955.4,3.15948408]
[1770974296322,14.8566305,1956.4,1955.4,3.15948408]
[1770974303130,0.25577,1956.3,1955.4,3.15948408]
[1770974303431,2.2586305,1956.1,1955.4,3.15948408]
[1770974304826,2.2586305,1955.8,1955.4,0.00423649]
[1770974305133,2.2586305,1956.1,1955.4,0.00423649]
[1770974305628,2.2586305,1956.1,1955.4,3.15221552]
[1770974305629,12.643,1956.1,1955.4,3.15221552]
[1770974306231,12.643,1956.1,1955.4,0.00423649]
[1770974306432,12.643,1956.1,1955.4,3.15160553]
[1770974309131,2.2586305,1956.0,1955.4,3.14471033]
[1770974309335,12.643,1956.1,1955.4,3.14471033]
[1770974317836,16.00664102,1956.4,1955.4,3.14471033]
[1770974318038,4.50967375,1956.3,1955.4,3.14471033]
[1770974318229,4.50967375,1956.2,1955.4,3.14471033]
[1770974318426,4.50967375,1956.1,1955.4,3.14471033]
[1770974318631,3.03388102,1956.3,1955.4,3.14471033]
[1770974318939,7.54922315,1956.3,1955.4,3.14471033]
[1770974319442,3.03388102,1956.2,1955.4,3.14471033]
[1770974320543,4.51534213,1956.1,1955.4,3.14471033]
[1770974320733,18.26527152,1956.4,1955.4,3.14471033]
[1770974320934,7.55007879,1956.3,1955.4,3.14471033]
[1770974321134,4.51619777,1956.2,1955.4,3.14471033]
[1770974321340,4.51619777,1956.1,1955.4,3.14471033]
[1770974321540,3.03388102,1956.3,1955.4,3.14471033]
[1770974321740,7.53467772,1956.3,1955.4,3.14471033]
[1770974322442,4.5007967,1956.2,1955.4,3.14471033]
[1770974322635,16.04064102,1956.4,1955.4,3.14471033]
[1770974322839,5.93582375,1956.3,1955.6,1.43518335]
[1770974323038,12.751,1956.4,1955.8,1.43518335]
[1770974323231,12.751,1956.4,1955.9,3.10992242]
[1770974323737,0.00630486,1956.5,1955.9,3.10992242]
[1770974323944,0.00630486,1956.5,1955.7,3.10992242]
[1770974324140,1.43518335,1956.4,1955.7,3.10992242]
[1770974324337,0.00630486,1956.5,1955.9,3.10959834]
[1770974327644,2.25989806,1956.3,1955.5,3.11626812]
[1770974327848,0.00630486,1956.5,1955.5,5.37616618]
[1770974328049,4.4733609,1956.4,1955.6,3.11626812]
[1770974328248,0.00630486,1956.5,1955.6,3.11626812]
[1770974328442,4.47308476,1956.4,1955.6,3.11626812]
[1770974328639,0.00630486,1956.5,1955.6,3.11626812]
[1770974328842,4.47308987,1956.4,1955.6,3.11626812]
[1770974329039,0.00630486,1956.5,1955.6,3.11626812]
[1770974329245,4.4727812,1956.4,1955.6,3.11626812]
[1770974329450,0.00630486,1956.5,1955.6,3.11626812]
[1770974329748,4.47278028,1956.4,1955.6,3.11626812]
[1770974329951,0.00630486,1956.5,1955.6,3.11626812]
[1770974330148,4.4727106,1956.4,1955.6,3.11626812]
[1770974330348,0.00630486,1956.5,1955.6,3.11626812]
[1770974330551,4.4723639,1956.4,1955.6,3.11626812]
[1770974330748,0.00630486,1956.5,1955.6,3.11626812]
[1770974330948,4.4723639,1956.4,1955.6,3.11626812]
[1770974331246,0.00630486,1956.5,1955.6,3.11626812]
[1770974339659,0.00630486,1956.5,1955.8,3.11420738]
[1770974344156,16.07656102,1957.0,1955.9,6.04181244]
[1770974344359,4.39556422,1956.9,1956.0,3.10166972]
[1770974344657,16.07656102,1957.0,1956.1,3.10166972]
[1770974344959,4.3955461,1956.9,1956.1,3.10166972]
[1770974345160,0.00459827,1956.9,1956.1,3.10166972]
[1770974349756,1.43434329,1956.7,1956.1,3.10166972]
[1770974349954,1.43434329,1956.5,1956.1,3.10166972]
[1770974350158,1.43434329,1956.5,1955.8,3.08074475]
[1770974351959,3.28961102,1956.7,1955.8,3.08074475]
[1770974352166,4.39897654,1956.6,1955.8,3.08074475]
[1770974352359,4.39897654,1956.5,1955.8,3.08074475]
[1770974355966,0.25573,1956.7,1955.9,3.06941291]
[1770974356168,4.38207629,1956.6,1955.9,3.06941291]
[1770974356367,0.25573,1956.7,1955.9,3.06941291]
[1770974356561,4.38219677,1956.6,1955.9,3.06941291]
[1770974356761,0.25573,1956.7,1955.9,3.06941291]
[1770974356962,4.38241563,1956.6,1955.9,3.06941291]
[1770974357164,1.43434329,1956.6,1955.9,3.06941291]
[1770974357571,0.25573,1956.7,1955.9,3.06941291]
[1770974357770,4.38260996,1956.6,1955.9,3.06941291]
[1770974357973,0.25573,1956.7,1955.9,3.06941291]
[1770974358165,4.38260257,1956.6,1955.9,3.06941291]
[1770974358364,0.25573,1956.7,1955.9,3.06941291]
[1770974358573,4.38290824,1956.6,1955.9,3.06941291]
[1770974358765,0.25573,1956.7,1955.9,3.06941291]
[1770974359067,4.38290824,1956.6,1955.9,3.06941291]
[1770974359368,0.25573,1956.7,1955.9,3.06941291]
[1770974359672,4.38323817,1956.6,1955.9,3.06941291]
[1770974359874,0.25573,1956.7,1955.9,3.06941291]
[1770974360172,4.38323887,1956.6,1955.9,3.06941291]
[1770974360374,0.25573,1956.7,1955.9,3.06941291]
[1770974360671,4.38355003,1956.6,1955.9,3.06941291]
[1770974360971,17.29522431,1956.8,1955.9,3.06941291]
[1770974361175,4.38328337,1956.7,1955.9,3.06941291]
[1770974361373,4.38328337,1956.6,1955.9,3.06941291]
[1770974361573,17.32516,1956.8,1955.9,3.06941291]
[1770974361773,4.36432143,1956.7,1955.9,3.06941291]
[1770974361970,4.36432143,1956.6,1955.9,3.06941291]
[1770974362175,3.06381671,1956.7,1955.9,3.06941291]
[1770974362470,7.42856649,1956.7,1955.9,3.06941291]
[1770974362772,4.36474978,1956.7,1955.9,3.06941291]
[1770974362965,4.36474978,1956.6,1955.9,3.06941291]
[1770974363172,17.32516,1956.8,1955.9,3.06941291]
[1770974363374,4.36454082,1956.7,1955.9,3.06941291]
[1770974363568,4.36454082,1956.6,1955.9,3.06941291]
[1770974363872,63.18171971,1956.8,1955.9,3.06941291]
[1770974364070,4.36459921,1956.7,1955.9,3.06941291]
[1770974364276,4.36459921,1956.6,1955.9,3.06941291]
[1770974364570,17.32516,1956.8,1955.9,3.06941291]
[1770974364770,4.36461631,1956.7,1955.9,3.06941291]
[1770974364977,4.36461631,1956.6,1955.9,3.06941291]
[1770974365177,14.26134329,1956.8,1955.9,3.06941291]
[1770974365378,4.34695892,1956.7,1955.9,3.06941291]
[1770974365574,4.34695892,1956.6,1955.9,3.06941291]
[1770974365876,14.26134329,1956.8,1955.9,3.06941291]
[1770974366074,4.34695731,1956.7,1955.9,3.06941291]
[1770974366276,4.34695731,1956.6,1955.9,3.06941291]
[1770974366472,14.26134329,1956.8,1955.9,3.06941291]
[1770974366672,4.34697435,1956.7,1955.9,3.06941291]
[1770974366874,4.34697435,1956.6,1955.9,3.06941291]
[1770974367074,14.26134329,1956.8,1955.9,3.06941291]
[1770974367274,4.34701236,1956.7,1955.9,3.06941291]
[1770974367475,4.34701236,1956.6,1955.9,3.06941291]
[1770974367676,12.827,1956.8,1955.9,3.06941291]
[1770974367883,4.34684554,1956.7,1955.9,3.06941291]
[1770974368077,12.827,1956.8,1955.9,3.06941291]
[1770974368277,4.34678676,1956.7,1955.9,3.06941291]
[1770974368483,12.827,1956.8,1955.9,3.06941291]
[1770974368977,4.34679244,1956.7,1955.9,3.06941291]
[1770974369187,12.827,1956.8,1955.9,3.06941291]
[1770974369387,4.34676933,1956.7,1955.9,3.06941291]
[1770974369588,12.827,1956.8,1955.9,3.06941291]
[1770974370885,12.827,1956.8,1956.1,3.07888129]
[1770974371187,0.00459827,1956.9,1956.1,7.6305959]
[1770974371388,0.00459827,1956.9,1956.2,3.07868689]
[1770974375595,1.43434329,1956.8,1956.2,3.07868689]
[1770974382596,4.49816,1956.8,1956.2,3.07868689]
[1770974384500,13.006,1956.7,1956.2,3.07868689]
[1770974388896,1.43479658,1956.6,1956.2,3.07868689]
[1770974393205,13.006,1956.7,1956.2,3.07868689]
[1770974396512,1.43479658,1956.5,1956.2,3.07868689]
[1770974396701,1.43479658,1956.5,1956.0,3.06049168]
[1770974396906,1.43479658,1956.3,1956.0,3.06049168]
[1770974397104,13.203,1956.3,1956.0,3.06049168]
[1770974397311,3.06841498,1956.9,1956.3,1.53024584]
[1770974397510,3.06381671,1957.4,1956.7,1.53023558]
[1770974397808,13.206,1957.4,1956.7,1.53023558]
[1770974398000,14.64079658,1957.4,1956.7,1.53023558]
[1770974398200,14.64079658,1957.4,1956.8,1.52793644]
[1770974398602,14.64693683,1957.4,1956.8,1.53378272]
[1770974400307,1.43479658,1957.2,1956.8,1.53378272]
[1770974405605,14.64693683,1957.4,1956.8,1.53378272]
[1770974407410,13.21214025,1957.4,1956.8,1.53378272]
[1770974407813,13.21214025,1957.4,1957.1,1.45269701]
[1770974409507,1.43479658,1957.7,1957.1,1.45269701]
[1770974409712,1.43479658,1957.6,1957.1,1.45269701]
[1770974410522,0.00489168,1957.6,1957.1,1.45269701]
[1770974413416,1.43479658,1957.5,1957.1,1.45269701]
[1770974414111,1.43479658,1957.2,1956.8,1.4376014]
[1770974414814,1.43479658,1957.3,1956.8,1.4376014]
[1770974415811,1.43479658,1957.1,1956.8,1.4376014]
[1770974416513,1.43479658,1957.1,1956.3,5.98651119]
[1770974416714,1.43479658,1957.1,1956.4,1.09386885]
[1770974417717,1.43479658,1957.1,1956.4,1.0984445]
[1770974419017,1.43479658,1957.1,1956.5,1.09681045]
[1770974419709,1.43479658,1957.2,1956.5,1.09681045]
[1770974420907,4.4922049,1957.6,1956.7,1.10096987]
[1770974421116,14.75379658,1957.5,1956.8,1.10096987]
[1770974421319,1.43479658,1957.4,1956.8,1.10096987]
[1770974422012,13.319,1957.5,1956.8,1.10096987]
[1770974423422,1.43479658,1957.4,1956.8,1.10096987]
[1770974424917,1.43479658,1957.2,1956.8,1.10096987]
[1770974425826,1.43479658,1957.3,1956.8,1.10096987]
[1770974426421,1.43479658,1957.1,1956.8,1.10096987]
[1770974428024,0.99486822,1957.0,1956.6,1.01983207]
[1770974428920,2.4296648,1957.1,1956.6,1.01983207]
[1770974431127,2.55315833,1957.3,1956.6,1.01983207]
[1770974431524,1.11836175,1957.2,1956.6,1.01983207]
[1770974431826,16.37151664,1957.5,1956.8,1.03008589]
[1770974431827,14.50536175,1957.4,1956.8,1.03008589]
[1770974432129,2.55315833,1957.3,1956.8,1.03008589]
[1770974432326,1.11836175,1957.2,1956.8,1.03008589]
[1770974434919,1.11836175,1957.2,1956.6,5.67914266]
[1770974435128,1.04558169,1957.0,1956.6,1.12742805]
[1770974435329,1.43479658,1957.2,1956.5,1.12742805]
[1770974435330,1.04558169,1956.8,1956.5,1.12742805]
[1770974436625,1.04558169,1956.8,1956.4,1.1320037]
[1770974439530,2.48037827,1956.9,1956.4,1.1320037]
[1770974439732,1.04558169,1956.9,1956.4,1.1320037]
[1770974441938,1.43479658,1957.0,1956.4,1.1320037]
[1770974442138,2.48037827,1957.0,1956.4,1.1320037]
[1770974442436,1.04558169,1956.9,1956.4,1.1320037]
[1770974445734,1.04558169,1956.7,1956.4,0.00457565]
[1770974445939,1.43479658,1956.8,1956.2,5.67914266]
[1770974445940,1.04558169,1956.5,1956.2,5.67914266]
[1770974446143,1.04558169,1956.5,1956.2,1.12742805]
[1770974446642,1.04558169,1956.7,1956.2,1.12742805]
[1770974447039,1.04558169,1956.7,1956.2,1.13214981]
[1770974450243,15.96237827,1956.8,1956.2,1.13214981]
[1770974450739,1.04558169,1956.7,1956.2,1.13214981]
[1770974459147,3.06190556,1957.0,1956.2,1.13214981]
[1770974459345,1.04558169,1957.2,1956.5,1.43458906]
[1770974459649,13.625,1957.2,1956.6,1.12742805]
[1770974460349,1.04558169,1957.4,1956.7,1.12742805]
[1770974460549,14.85740113,1957.5,1956.7,1.12742805]
[1770974460749,13.626,1957.5,1956.8,1.16927832]
[1770974461651,14.85740113,1957.5,1956.8,1.16927832]
[1770974464349,13.626,1957.5,1957.0,1.16927832]
[1770974464654,0.00489168,1957.6,1957.0,1.16927832]
[1770974464953,0.00489168,1957.6,1957.1,1.16927832]
[1770974465145,13.635,1957.9,1957.1,1.16927832]
[1770974465345,14.86640113,1957.9,1957.1,1.16927832]
[1770974465953,13.635,1957.9,1957.1,1.16927832]
[1770974466248,13.64142146,1957.9,1957.1,1.16927832]
[1770974466943,1.23140113,1957.8,1957.1,1.16927832]
[1770974468446,13.64142146,1957.9,1957.2,1.16927832]
[1770974468647,0.00642146,1957.9,1957.2,1.16927832]
[1770974468857,1.23140113,1958.2,1957.4,1.16927832]
[1770974469853,1.23577781,1958.2,1957.4,1.16927832]
[1770974470459,0.00437668,1958.2,1957.6,1.16927832]
[1770974470646,0.00437668,1958.2,1957.6,1.1736041]
[1770974471049,6.90740113,1958.5,1957.8,1.16927832]
[1770974472250,6.91129176,1958.5,1957.8,1.16927832]
[1770974472452,1.23140113,1958.4,1957.8,1.16927832]
[1770974474451,1.23140113,1958.1,1957.7,1.16927832]
[1770974474952,1.23529176,1958.5,1957.8,1.16927832]
[1770974479863,1.23529176,1958.5,1957.7,1.16927832]
[1770974480165,1.23140113,1958.3,1957.6,1.1736041]
[1770974481260,1.23140113,1958.1,1957.6,0.00432578]
[1770974481462,1.23140113,1958.1,1957.2,1.16927832]
[1770974482254,2.25944969,1958.5,1957.2,1.16927832]
[1770974482255,1.23140113,1958.4,1957.2,1.16927832]
[1770974482559,1.23140113,1958.4,1957.2,1.17526947]
[1770974484663,1.23140113,1958.4,1957.3,1.16927832]
[1770974484868,1.23140113,1958.4,1957.4,1.16927832]
[1770974486367,1.23140113,1958.4,1957.5,1.16927832]
[1770974488261,1.23140113,1958.4,1957.6,1.16927832]
[1770974489260,1.23140113,1958.4,1957.6,4.17593439]
[1770974489568,1.23140113,1958.4,1957.7,1.16927832]
[1770974491666,0.00389063,1958.5,1957.8,1.16747267]
[1770974491869,0.00389063,1958.5,1958.0,1.16747267]
[1770974494058,1.22859717,1958.7,1958.0,1.16747267]
[1770974494259,1.22859717,1958.8,1958.1,1.16747267]
[1770974495066,0.00620827,1958.8,1958.4,1.27828502]
[1770974495868,1.19264438,1959.0,1958.4,1.27828502]
[1770974496966,1.1986634,1959.0,1958.4,1.27828502]
[1770974498173,0.00601902,1959.0,1958.4,1.27828502]
[1770974498370,4.24394641,1959.5,1958.5,1.27828502]
[1770974498574,1.19264438,1959.5,1958.7,1.27828502]
[1770974498872,1.19264438,1959.5,1958.8,1.27828502]
[1770974499471,1.19887773,1959.5,1958.8,1.28221768]
[1770974499869,0.00623335,1959.5,1959.0,1.27828502]
[1770974500173,0.47861099,1959.9,1959.1,1.27828502]
[1770974500864,0.47861099,1959.9,1958.9,1.27828502]
[1770974501069,0.4829652,1959.9,1958.9,1.27828502]
[1770974501462,6.27936,1960.3,1958.8,0.00393266]
[1770974501463,6.09697461,1961.7,1960.2,1.27828502]
[1770974501666,1.44771438,1961.7,1960.6,1.27828502]
[1770974501877,1.11593341,1961.7,1960.7,0.7975504]
[1770974502072,1.11593341,1961.7,1960.8,0.7975504]
[1770974502273,1.11593341,1961.7,1960.9,0.7975504]
[1770974502572,1.12224708,1961.7,1961.0,0.7975504]
[1770974502770,1.12224708,1961.7,1961.1,0.7975504]
[1770974502970,1.12224708,1961.7,1960.2,3.00244151]
[1770974502971,1.19264438,1961.2,1959.8,3.00244151]
[1770974503169,1.19264438,1961.0,1959.9,1.27828502]
[1770974503772,1.19264438,1960.9,1959.9,1.27828502]
[1770974503977,1.19264438,1960.9,1959.9,1.28214018]
[1770974504773,2.51066906,1961.4,1959.9,1.28214018]
[1770974504774,1.19264438,1961.3,1959.9,1.28214018]
[1770974504969,1.19264438,1961.0,1959.9,1.28214018]
[1770974508173,1.19264438,1961.4,1960.1,1.27828502]
[1770974508378,1.19264438,1961.4,1960.3,1.27828502]
[1770974508978,0.00631367,1961.7,1960.5,1.27828502]
[1770974508979,1.19264438,1961.5,1960.5,1.27828502]
[1770974509678,1.19264438,1961.5,1960.7,1.27828502]
[1770974512470,1.19264438,1961.6,1960.7,1.27828502]
[1770974513273,0.00631367,1961.7,1960.7,1.27828502]
[1770974513274,1.19895805,1961.7,1960.7,1.27828502]
[1770974514879,1.19264438,1961.6,1960.8,0.79749637]
[1770974515077,1.19264438,1961.6,1960.9,0.79749637]
[1770974515273,1.19264438,1961.6,1961.0,0.79749637]
[1770974515480,1.19264438,1961.6,1961.1,0.79749637]
[1770974515679,1.19264438,1961.6,1960.8,1.27828502]
[1770974515880,1.19264438,1961.6,1960.9,0.79749654]
[1770974516080,1.19264438,1961.6,1960.8,1.27828502]
[1770974516081,1.19264438,1961.6,1961.0,0.79749654]
[1770974516282,1.19264438,1961.6,1961.1,0.79749654]
[1770974516482,1.19264438,1961.6,1960.8,1.27828502]
[1770974516682,1.19264438,1961.6,1960.9,0.79749664]
[1770974516984,1.19264438,1961.6,1960.8,1.27828502]
[1770974516985,1.19264438,1961.6,1961.0,0.79749664]
[1770974517184,1.19264438,1961.6,1961.1,0.79749664]
[1770974517380,1.19264438,1961.6,1960.8,1.27828502]
[1770974517580,1.19264438,1961.6,1961.0,1.27828502]
[1770974517775,0.00631367,1961.7,1961.1,2.0757821]
[1770974517776,7.01164438,1961.5,1961.1,2.0757821]
[1770974517983,7.01164438,1961.5,1960.7,1.27828502]
[1770974518283,7.01164438,1961.5,1960.9,1.27828502]
[1770974518487,1.19264438,1961.4,1961.1,1.27828502]
[1770974518684,1.19264438,1961.4,1960.9,1.27828502]
[1770974521978,1.19264438,1961.4,1960.0,4.50366227]
[1770974521979,1.19264438,1961.4,1960.5,1.37752289]
[1770974522782,5.369,1961.3,1960.5,1.37752289]
[1770974522979,0.25509,1961.6,1960.3,2.24811842]
[1770974522980,0.64365493,1961.6,1960.7,1.37752289]
[1770974523282,5.323,1961.5,1960.7,1.37752289]
[1770974523884,5.70273903,1961.5,1960.7,1.37752289]
[1770974524289,0.00631367,1961.7,1960.9,1.37752289]
[1770974524587,0.00631367,1961.7,1961.2,1.37752289]
[1770974524894,0.3629247,1962.2,1961.2,1.37752289]
[1770974525387,0.36923837,1962.1,1961.2,1.37752289]
[1770974525888,0.37326487,1962.1,1961.2,1.37752289]
[1770974526283,4.2390265,1962.1,1961.2,1.37752289]
[1770974526487,0.0040265,1962.1,1961.2,1.37752289]
[1770974527489,0.0040265,1962.1,1961.5,1.37752289]
[1770974527688,0.0040265,1962.1,1961.5,1.38255028]
[1770974529488,0.34562262,1962.2,1961.5,1.38255028]
[1770974530595,0.35080743,1962.2,1961.5,1.38255028]
[1770974530796,0.35080743,1962.2,1961.7,1.37752289]
[1770974531096,0.35080743,1962.2,1961.8,2.10750832]
[1770974531296,0.35080743,1962.2,1961.9,0.72998543]
[1770974531597,0.35080743,1962.2,1961.5,0.00502739]
[1770974531598,0.3335929,1962.0,1961.5,0.00502739]
[1770974532296,0.3335929,1961.8,1961.5,0.00502739]
[1770974532685,13.63799279,1961.9,1961.5,1.38255028]
[1770974533089,0.25502,1962.1,1961.5,1.38255028]
[1770974533289,0.28826924,1961.9,1961.5,0.00502739]
[1770974535097,13.352,1962.0,1961.5,1.38255028]
[1770974535404,0.28169981,1961.9,1961.5,0.00502739]
[1770974535997,0.27478214,1961.8,1961.1,4.3799644]
[1770974536204,0.27478214,1961.8,1961.0,1.37752289]
[1770974536697,0.26380246,1961.2,1960.5,1.37752289]
[1770974536997,0.26380246,1961.0,1960.5,1.3839056]
[1770974537201,0.26380246,1961.0,1960.5,0.00638271]
[1770974537401,0.26380246,1961.0,1960.2,1.37752289]
[1770974538401,0.26380246,1961.0,1960.2,1.38394065]
[1770974538601,13.2688313,1960.9,1960.2,1.38394065]
[1770974538800,0.3828313,1960.8,1960.2,1.38394065]
[1770974539003,0.38764949,1960.8,1960.2,1.38394065]
[1770974539405,0.38764949,1960.8,1960.2,0.00641776]
[1770974539806,0.37228013,1960.7,1960.0,1.37752289]
[1770974540305,0.37228013,1960.6,1959.8,1.37752289]
[1770974540904,0.37228013,1960.6,1959.8,1.38207053]
[1770974542405,0.33919081,1960.3,1959.8,1.38207053]
[1770974543008,9.05619081,1960.2,1959.8,1.38207053]
[1770974543204,0.33919081,1960.1,1959.6,1.37752289]
[1770974543401,0.33919081,1960.1,1959.4,1.37752289]
[1770974544207,0.33919081,1960.1,1959.4,1.38288609]
[1770974544711,0.32539917,1959.9,1959.2,1.37752289]
[1770974545808,0.32539917,1959.9,1959.2,1.3830004]
[1770974547009,2.24811842,1959.6,1958.8,1.37752289]
[1770974547302,2.56129461,1959.6,1958.8,1.37752289]
[1770974547613,0.30246036,1959.5,1958.8,1.37752289]
[1770974548014,0.30246036,1959.5,1958.8,1.38366577]
[1770974553821,0.26498506,1959.3,1958.8,1.38366577]
[1770974554115,0.26907126,1959.3,1958.8,0.18327622]
[1770974555114,0.0040862,1959.3,1958.8,0.18894662]
[1770974556110,1.29698739,1959.3,1958.8,0.18894662]
[1770974556316,0.0040862,1959.3,1958.9,1.35014295]
[1770974557620,1.29698739,1959.3,1958.9,1.35014295]
[1770974560528,0.0040862,1959.3,1958.9,1.35014295]
[1770974560828,1.54821119,1959.8,1958.9,1.35014295]
[1770974561722,1.55351966,1959.8,1958.9,1.35014295]
[1770974565326,1.29290119,1959.6,1958.9,1.35014295]
[1770974566729,13.25,1959.5,1958.9,1.35014295]
[1770974566925,14.54290119,1959.5,1958.9,1.35014295]
[1770974567629,1.29290119,1959.4,1958.9,1.35014295]
[1770974575940,13.301,1959.4,1959.0,1.35014295]
[1770974576143,1.29290119,1959.3,1958.9,5.85380522]
[1770974576741,1.29290119,1959.3,1958.9,1.35014295]
[1770974577942,1.29290119,1959.3,1958.8,11.86435865]
[1770974578238,1.29290119,1959.3,1958.8,4.50933267]
[1770974578634,1.29290119,1959.3,1958.8,5.85947562]
[1770974579637,1.29290119,1959.3,1958.9,1.35014295]
[1770974579937,14.62490119,1959.2,1958.9,1.35014295]
[1770974580134,1.29290119,1959.1,1958.9,1.35014295]
[1770974580335,1.29290119,1959.1,1958.8,4.50933267]
[1770974580739,1.29290119,1959.1,1958.8,5.88460089]
[1770974581340,1.29290119,1959.1,1958.8,0.0056704]
[1770974581540,1.29290119,1959.1,1958.7,4.50366227]
[1770974581845,1.40153613,1958.9,1958.5,4.50366227]
[1770974582141,1.40153613,1958.9,1958.3,10.5085453]
[1770974582343,1.40153613,1958.9,1958.3,4.50366227]
[1770974582531,1.40153613,1958.9,1958.3,4.50837328]
[1770974582733,1.40153613,1958.9,1958.3,1.37997923]
[1770974583231,1.40153613,1958.7,1958.3,1.37997923]
[1770974584545,13.363,1958.6,1958.3,1.37997923]
[1770974584736,11.65349959,1958.6,1958.3,1.37997923]
[1770974584936,12.869,1958.7,1958.3,1.37997923]
[1770974585350,1.54442751,1959.1,1958.3,1.37997923]
[1770974585646,1.57084793,1959.0,1958.4,4.53745039]
[1770974585835,1.57084793,1959.0,1958.4,0.00971764]
[1770974587245,1.57084793,1959.0,1958.3,4.5421614]
[1770974587548,1.57084793,1959.0,1958.3,0.00471101]
[1770974587738,13.363,1958.9,1958.3,0.00471101]
[1770974588343,14.93637932,1958.9,1958.3,0.00471101]
[1770974589633,1.57001224,1958.8,1958.3,0.00471101]
[1770974592943,1.82546224,1958.8,1958.3,0.00471101]
[1770974593244,1.82546224,1958.8,1957.9,4.53745039]
[1770974593842,1.56895411,1958.3,1957.7,4.53745039]
[1770974594146,1.56895411,1958.2,1957.7,0.00539595]
[1770974594446,13.37713792,1958.3,1957.7,0.00539595]
[1770974594447,1.57470645,1958.3,1957.7,0.00539595]
[1770974594745,13.369,1958.2,1957.7,0.00539595]
[1770974594945,14.94370645,1958.3,1957.7,0.00539595]
[1770974595347,0.00613792,1958.3,1957.7,0.00539595]
[1770974596641,0.00613792,1958.3,1957.7,3.0213613]
[1770974598947,0.00613792,1958.3,1957.8,3.01596535]
[1770974599147,1.63116716,1958.8,1957.9,3.01596535]
[1770974599343,1.63116716,1958.8,1958.0,3.01596535]
[1770974599951,1.63026853,1958.9,1958.1,3.01596535]
[1770974600142,1.63397735,1958.9,1958.1,3.01524036]
[1770974601148,1.63397735,1958.9,1958.2,3.01524036]
[1770974601347,0.00370882,1958.9,1958.2,3.01524036]
[1770974601746,1.64343027,1958.9,1958.2,3.01524036]
[1770974604051,0.00370882,1958.9,1958.2,3.01524036]
[1770974604254,0.00370882,1958.9,1958.4,3.01524036]
[1770974605344,0.00370882,1958.9,1958.5,3.01524036]
[1770974607943,1.63723009,1959.2,1958.5,3.01524036]
[1770974608345,1.63723009,1959.2,1958.6,3.01524036]
[1770974609149,1.64367306,1959.2,1958.6,3.01524036]
[1770974610661,0.00644297,1959.2,1958.8,3.01524036]
[1770974610851,1.63935978,1959.4,1958.8,7.55269075]
[1770974611356,1.63935978,1959.4,1958.8,3.01524036]
[1770974611757,1.64595205,1959.4,1958.8,3.01524036]
[1770974614164,0.00659227,1959.4,1958.9,3.01524036]
[1770974614362,1.62489764,1959.6,1959.0,3.01524036]
[1770974614860,13.43746805,1960.2,1959.1,3.01524036]
[1770974614861,10.77137576,1960.1,1959.1,3.01524036]
[1770974615063,1.62437576,1960.0,1959.2,3.01524036]
[1770974615368,1.62934654,1960.0,1959.2,3.01924327]
[1770974615761,0.00497078,1960.0,1959.3,7.55269075]
[1770974615961,0.00497078,1960.0,1959.4,3.01524036]
[1770974616559,0.25521,1960.6,1959.5,3.01524036]
[1770974616861,0.25521,1960.6,1959.6,3.01524036]
[1770974616862,1.61953093,1960.5,1959.6,3.01524036]
[1770974617063,1.61953093,1960.5,1959.5,3.01524036]